[Event "Ramat Gan Masters-A Winter 2023"]
[Site "Ramat Gan/ISR"]
[Date "2023.02.27"]
[Round "6.2"]
[White "Sherman, Reem"]
[Black "Aroeta, Benny"]
[Result "1/2-1/2"]
[Annotator "TA"]
[ECO "B03"]
[WhiteElo "2249"]
[BlackElo "1978"]
[PlyCount "147"]
[EventDate "2023.01.17"]
[EventType "swiss"]
[SourceTitle "playchess.com"]
[Source "ChessBase"]
[SourceQuality "1"]
[TimeControl "5400+30"]

{[%evp 15,147,12,18,0,0,-6,0,0,6,-10,-5,-19,-14,-25,-14,-67,-44,-68,-82,-78,-70,-86,-98,-98,-89,-91,-100,-103,-81,-93,-104,-118,-76,-85,-56,-40,-31,-47,-13,-1,-16,-83,-66,-627,-613,-735,-724,-729,-695,-803,-799,-1012,-586,-576,-585,-558,-590,-581,-574,-563,-529,-641,-170,-273,-154,-604,-600,-639,-549,-560,-549,-610,-609,-591,-566,-777,-735,-722,-675,-667,-387,-372,-389,-377,-362,-310,-266,-358,-120,-272,-239,-216,0,0,0,-26,-24,-51,-10,-6,0,0,0,0,0,0,0,0,103,0,72,14,16,0,0,0,0,0,0,0,0,0,0,0,0,0,0,0,0,0,0,0,0,0]} 1. e4 {[%emt 0:00:08][%cal Be2e4,Be4e5][%mdl 32]} Nf6 {[%emt 0:21:13]} 2. e5 {[%emt 0:02:54]} Nd5 {[%emt 0:00:12]} 3. Bc4 {[%emt 0:02:29]} Nb6 {[%emt 0:12:17]} 4. Bb3 {[%emt 0:00:16]} Nc6 {[%emt 0:01:18]} 5. Nf3 {[%emt 0:03:13]} d6 {[%emt 0:00:56]} 6. exd6 {[%emt 0:00:34]} exd6 {[%emt 0:02:42]} 7. O-O {[%emt 0:00:50]} Be7 {[%emt 0:00:14]} 8. d4 {[%emt 0:01:01]} O-O {[%emt 0:00:13]} 9. h3 {[%emt 0:00:13] B03: Alekhine's Defence: Four Pawns Attack.} Na5 {[%emt 0:02:06]} 10. Nc3 {[%emt 0:03:59]} Nxb3 {[%emt 0:09:08]} 11. axb3 {[%emt 0:00:29]} Bf5 {[%emt 0:00:34]} 12. Bf4 {[%emt 0:01:34] [#]} h6 $146 {[%emt 0:07:09]} ({Predecessor:} 12... Re8 13. Qd2 h6 14. Rfe1 Qd7 15. Ra5 a6 16. Kh2 Bf6 17. Raa1 {½-½ Romijn,B-Stallinga,R Hoogeveen Essent Amateur 2004 (8)}) 13. Qd2 {[%emt 0:02:46]} Qd7 {[%emt 0:01:01]} 14. Kh2 {[%emt 0:04:25]} Bh7 {[%emt 0:04:31]} 15. h4 {[%emt 0:17:40]} ({Better is} 15. d5 $11) 15... Qf5 {[%emt 0:03:55]} 16. Rfc1 {[%emt 0:00:54]} a6 {[%emt 0:03:18]} 17. Bg3 {[%emt 0:02:02]} g5 {[%emt 0:05:47]} 18. d5 {[%emt 0:12:53]} Bf6 {[%emt 0:00:53]} 19. hxg5 {[%emt 0:00:49]} hxg5 {[%emt 0:01:30]} 20. Nd4 {[%emt 0:00:09]} Qg4 {[%emt 0:01:36]} 21. Nde2 {[%emt 0:00:55]} Rae8 {[%emt 0:05:58]} 22. f3 {[%emt 0:03:19]} Qh5+ {[%emt 0:02:27]} 23. Kg1 {[%emt 0:00:08]} Bg7 {[%emt 0:03:10]} 24. Bf2 {[%emt 0:07:18]} Nd7 {[%emt 0:03:21]} 25. Be3 {[%emt 0:05:25]} g4 {[%emt 0:02:43]} 26. f4 {[%emt 0:05:18]} g3 {[%emt 0:02:30]} 27. Nxg3 {[%emt 0:00:56]} Qg4 {[%emt 0:00:08]} 28. Qf2 {[%emt 0:04:25]} (28. Bf2 $11) 28... Re7 $1 $17 {[%emt 0:01:18]} 29. f5 $2 {[%emt 0:01:16][%mdl 8192] [#]} (29. Nf1 $15) 29... Rxe3 $1 $19 {[%emt 0:00:18][%mdl 576] Double Attack} 30. Nce2 {[%emt 0:01:31]} (30. Nf1 Re5) 30... Rfe8 {[%emt 0:01:00][%cal Re3e2]} 31. Ra4 {[%emt 0:00:30]} Qg5 {[%emt 0:00:15][%cal Oe3e2]} 32. Rf1 {[%emt 0:00:20]} Nf6 {[%emt 0:00:31]} 33. Rb4 {[%emt 0:01:08]} Ng4 {[%emt 0:00:49]} 34. Qf4 {[%emt 0:00:09]} Qxf4 {[%emt 0:00:53]} 35. Rfxf4 {[%emt 0:00:07]} Nf6 {[%emt 0:00:13]} 36. Rxb7 {[%emt 0:00:29]} Rxe2 {[%emt 0:00:43]} 37. Nxe2 {[%emt 0:00:10]} Rxe2 {[%emt 0:00:05]} 38. Rxc7 {[%emt 0:00:20]} Re4 $2 {[%emt 0:00:46]} (38... Nxd5 39. Rc8+ Bf8 40. Rg4+ $14) (38... Bh6 39. Rf3 Ng4 40. Rc8+ Kg7) 39. Rc8+ {[%emt 0:02:47]} (39. Rxe4 $142 Nxe4 40. Rc8+ Bf8 41. g4) 39... Bf8 {[%emt 0:00:10]} ({Black should try} 39... Re8 $19 40. Rxe8+ Nxe8) 40. Rf3 $2 {[%emt 0:01:41]} (40. Rxe4 $17 Nxe4 41. g4) 40... Ng4 {[%emt 0:00:31]} (40... Nxd5 41. Rg3+ $16) 41. g3 {[%emt 0:00:19]} Ne3 {[%emt 0:01:17]} 42. c4 {[%emt 0:01:01]} Nxf5 {[%emt 0:00:14]} 43. b4 {[%emt 0:00:59]} Nd4 {[%emt 0:00:25]} 44. Rf2 {[%emt 0:01:17]} Re1+ {[%emt 0:00:08]} 45. Kh2 {[%emt 0:00:16]} Be4 {[%emt 0:00:21][%csl Ge4][%cal Re1h1]} 46. g4 {[%emt 0:00:55]} Ne2 {[%emt 0:01:17][%csl Ge4][%cal Re1h1]} 47. Kh3 {[%emt 0:00:03]} Rh1+ {[%emt 0:00:26]} 48. Rh2 {[%emt 0:00:04]} Nf4+ {[%emt 0:00:46]} 49. Kg3 {[%emt 0:00:03]} Rxh2 {[%emt 0:00:35]} 50. Kxh2 {[%emt 0:00:01]} Nd3 {[%emt 0:00:09]} 51. Re8 {[%emt 0:00:18]} Bg6 {[%emt 0:00:10]} (51... f5 $19 52. b5 axb5 53. gxf5 Ne5 54. cxb5 Kf7) 52. c5 $2 {[%emt 0:00:37]} dxc5 {[%emt 0:01:14]} (52... Nxb4 53. cxd6 Kg7 54. d7 Bd6+ 55. Kh3 $18) 53. d6 {[%emt 0:00:04][%cal Bd5d6,Bd6d7][%mdl 32] [#] Strongly threatening d7.} Kg7 $2 {[%emt 0:00:54]} (53... Nxb2 54. d7 Bh7 55. d8=Q $18 (55. d8=R cxb4 56. Rxf8+ Kg7 $18)) (53... Ne5 $1 $19 {...f6 is the strong threat.} 54. bxc5 f6) 54. d7 $11 {[%emt 0:00:08]} Bd6+ {[%emt 0:00:13]} (54... Nxb2 $2 55. d8=Q (55. d8=R cxb4 56. Rxf8 Bh7 $18) 55... Nc4 56. Rxf8 $18) 55. Kg1 {[%emt 0:00:08]} Bc7 {[%emt 0:00:25]} (55... Nxb2 $2 56. d8=Q $18 (56. d8=R Nc4 $17) (56. d8=R Nc4 $17)) 56. Rc8 $1 {[%emt 0:00:07] Wards off cxb4} Bb6 {[%emt 0:00:27]} (56... Kf6 $5 57. Rxc7 Ke7 58. bxc5 Kd8 $17) 57. Rb8 $1 $132 {[%emt 0:02:27][%mdl 2048] White is not keeping still. Chess con chili.} Ne5 {[%emt 0:00:59]} 58. Rxb6 {[%emt 0:00:31]} Nxd7 {[%emt 0:00:05]} (58... Nxg4 59. bxc5 (59. d8=N cxb4 60. Nc6 Ne3 $18) 59... Kh7 60. d8=Q Nh6 61. c6 Ng4 62. c7 Bf5 63. Qh4+ Kg8 64. Qg5+ Kh8 65. Qxf5 f6 66. c8=Q+ Kg7 67. Rb7+ Kh6 68. Qh8#) 59. Rd6 {[%emt 0:00:07]} Ne5 {[%emt 0:00:55]} 60. bxc5 {[%emt 0:00:18] c6 would be deadly.} Be4 {[%emt 0:00:22]} 61. Rxa6 {[%emt 0:00:37]} Nc6 {[%emt 0:00:31]} (61... Nd3 $11) 62. Rb6 {[%emt 0:00:48]} (62. Kf2 $16) 62... Kf6 {[%emt 0:00:29] [#]} (62... f5 $1 $11 {keeps the balance.}) 63. Kf2 {[%emt 0:00:47]} (63. b4 $1 $16 {[%cal Rb4b5] Threatens to win with b5.} Ke7 64. Kf2) 63... Ke5 {[%emt 0:01:16] The position is equal.} 64. Kg3 {[%emt 0:01:46]} (64. Ke3 $5 {[%cal Rb2b4]}) 64... Kd5 {[%emt 0:00:00]} 65. b4 {[%emt 0:00:12]} Kc4 {[%emt 0:00:26]} 66. Kf4 {[%emt 0:00:06]} Bd5 {[%emt 0:00:29]} 67. b5 {[%emt 0:02:48]} Kxc5 {[%emt 0:00:10]} 68. Rxc6+ {[%emt 0:00:05]} Bxc6 {[%emt 0:00:03]} 69. bxc6 {[%emt 0:00:08]} Kxc6 {[%emt 0:00:02] KP-KP} 70. Ke5 {[%emt 0:00:07] Black must now prevent Kf6.} Kd7 $1 {[%emt 0:00:05]} 71. Kf6 {[%emt 0:00:04]} Ke8 {[%emt 0:00:03]} 72. g5 {[%emt 0:00:05]} Kf8 {[%emt 0:00:06]} 73. g6 {[%emt 0:00:05]} fxg6 {[%emt 0:00:03]} 74. Kxg6 {[%emt 0:00:02] White happily takes the draw.   Weighted Error Value: White=0.66/Black=0.41} 1/2-1/2

[Event "Ramat Gan Masters-A Winter 2023"]
[Site "Ramat Gan/ISR"]
[Date "2023.02.27"]
[Round "6.3"]
[White "Noy, Eyal"]
[Black "Rozen, Guy"]
[Result "1/2-1/2"]
[Annotator "TA"]
[ECO "D00"]
[WhiteElo "2117"]
[BlackElo "2027"]
[PlyCount "173"]
[EventDate "2023.01.17"]
[EventType "swiss"]
[SourceTitle "playchess.com"]
[Source "ChessBase"]
[SourceQuality "1"]
[TimeControl "5400+30"]

{[%evp 9,173,-6,-5,-16,-14,-44,-40,-55,3,6,20,26,12,24,22,-53,-50,-44,-50,-94,15,12,0,0,79,63,166,151,164,-104,-84,-295,-287,-458,-136,-129,-139,-137,-123,-308,-313,-560,-14,-351,0,-29987,-968,-1530,-415,-29987,-29988,-1748,48,62,68,50,139,143,143,132,137,130,128,122,208,198,618,220,201,0,0,-6,0,0,0,0,0,-55,0,0,0,0,13,0,0,0,0,0,0,0,0,0,0,0,0,-33,0,0,0,-33,-33,-33,0,-217,0,0,0,-33,0,0,0,0,0,-119,0,-36,0,0,0,-34,-34,-36,-37,-39,0,0,0,0,0,0,0,0,0,0,0,0,0,0,0,0,0,0,0,0,0,0,0,0,0,0,0,0,0,0,0,0,0,0,0,0,0,0,0,0,0,0]} 1. Nc3 {[%emt 0:08:07]} d5 {[%emt 0:02:54]} 2. d4 {[%emt 0:01:47]} Nf6 {[%emt 0:02:23]} 3. Bf4 {[%emt 0:00:42]} a6 {[%emt 0:04:41]} 4. e3 {[%emt 0:00:43]} e6 {[%emt 0:04:47]} 5. Nf3 {[%emt 0:04:31]} Nbd7 {[%emt 0:03:56]} 6. Ne5 {[%emt 0:02:18] D00: 1 d4 d5: Unusual lines.} Nxe5 {[%emt 0:01:12]} 7. dxe5 {[%emt 0:00:44]} Nd7 {[%emt 0:00:09] [#]} 8. h4 $146 {[%emt 0:07:21] Black is slightly better.} ({Predecessor:} 8. e4 c6 9. exd5 cxd5 10. Bd3 Bb4 11. O-O Bxc3 12. bxc3 b5 13. h3 g5 14. Be3 Nxe5 {1-0 Dietrich,D-Schlosser,J Rangliste 1000-1300 18868 2015}) 8... f6 {[%emt 0:23:27]} (8... c5 $15) 9. exf6 $11 {[%emt 0:02:33]} Nxf6 {[%emt 0:01:40]} 10. g4 {[%emt 0:01:45][%cal Bg2g4,Bg4g5][%mdl 32]} Bb4 {[%emt 0:04:50]} 11. g5 {[%emt 0:02:24]} Ne4 {[%emt 0:01:28] And now ...0-0 would win.} 12. a3 {[%emt 0:02:43]} (12. Qd4 Qe7 $15) ({White should play} 12. Be5 $11) 12... Bxc3+ $15 {[%emt 0:03:02]} (12... Nxc3 13. Qd4 O-O 14. axb4 $16 (14. bxc3 c5 $15) (14. Qxb4 Ne4 $11)) 13. bxc3 {[%emt 0:00:01]} O-O {[%emt 0:00:11] aiming for ...e5.} (13... Nxc3 $2 14. Qd4 Ne4 15. Qxg7 $18) 14. Bd3 {[%emt 0:05:02]} Qe7 {[%emt 0:19:29]} (14... Nxc3 $2 15. Bxh7+ (15. Qh5 Ne4 $11) 15... Kxh7 16. Qh5+ Kg8 17. g6 Rxf4 18. Qh7+ Kf8 19. Qh8+ Ke7 20. Qxg7+ Kd6 21. exf4 $18) (14... Nxf2 $1 $17 15. Kxf2 e5 {[%mdl 64] Pin}) 15. Bxe4 {[%emt 0:07:29]} dxe4 {[%emt 0:00:01]} 16. Qd4 {[%emt 0:00:29]} c5 {[%emt 0:03:40] Repels Qb4. Black is weak on the dark squares} (16... b5 $11 {remains equal.}) 17. Qxe4 $16 {[%emt 0:00:37] White is more active.} Bd7 {[%emt 0:06:25]} (17... e5 $14) 18. Qxb7 $18 {[%emt 0:00:47]} Qe8 {[%emt 0:00:01]} 19. Rg1 $2 {[%emt 0:08:09]} (19. Be5 $18) 19... Bc6 $36 {[%emt 0:01:50][%mdl 2048] Black is really pushing.} 20. Qb6 {[%emt 0:02:40]} (20. Qb3 $17 Rd8 21. Rd1) 20... e5 $1 $19 {[%emt 0:08:17]} 21. Bg3 {[%emt 0:00:13]} (21. Bh2 $142 Rd8 22. Rd1 (22. Qxa6 $2 Bb5 $19) 22... Rxd1+ {[%mdl 64] Overworked Piece} 23. Kxd1 Rxf2 24. Qb3+ Kh8 25. Bg3) 21... Rb8 $2 {[%emt 0:01:36]} (21... Rd8 $19 22. Qb3+ (22. Qxc5 $2 Bf3 $19) (22. Qxa6 $2 Qd7 $19) 22... Bd5) 22. Qxc5 $17 {[%emt 0:04:06]} Rb5 {[%emt 0:00:13]} 23. Qc4+ {[%emt 0:00:42]} Bd5 {[%emt 0:00:07][%mdl 1024] Black has strong compensation.} 24. Qc7 {[%emt 0:00:45]} (24. Qd3 $17 Qc6 25. a4 (25. Bxe5 $2 Bc4 $19)) 24... Bf3 $1 $19 {[%emt 0:01:01]} 25. c4 $2 {[%emt 0:00:28]} (25. Qc4+ Kh8 26. e4) 25... Rf7 $2 {[%emt 0:00:29]} (25... Rb7 $1 $19 {[%cal Rb7c7]} 26. Qxe5 Qc6) 26. Qd6 {[%emt 0:07:35][%mdl 8192]} (26. Qxf7+ $1 $11 {and White stays safe.} Kxf7 27. cxb5) 26... Rd7 $2 {[%emt 0:01:00]} (26... Rbb7 $1 $19 27. Qc5 (27. Bxe5 $2 Rbd7 $19) (27. Qxe5 $2 Qd8 $19) (27. Qxa6 $2 Rfd7 $19) 27... Rbd7 28. Bxe5 (28. Qxe5 $2 Qd8 $19) 28... Rf5) 27. Qxa6 $2 {[%emt 0:01:07][%mdl 8192]} (27. Qxd7 $11 Qxd7 28. cxb5) 27... Rc5 {[%emt 0:03:07]} (27... Rb8 $142 28. c3 Rbd8 29. Qa4 Qg6 30. c5 Qd3 31. Qb3+ Kh8 32. Qb2 Qd1+ {[%mdl 64] Back Rank} 33. Rxd1 Rxd1#) 28. Qb6 {[%emt 0:05:15]} Rc6 {[%emt 0:00:04]} (28... Rc8 $142 29. Qb1 Rcd8) 29. Qb1 {[%emt 0:11:58]} (29. Qb3 $19 Qd8 30. c5+ (30. Bxe5 $2 Rd1+ {[%mdl 64] Back Rank} 31. Rxd1 Qxd1#) 30... Kh8 31. c4 (31. Bxe5 $2 Rd1+ {[%mdl 64] Back Rank} 32. Rxd1 Qxd1#) 31... Rxc5 32. Bxe5 Rxe5 33. Rg3) 29... Rcd6 {[%emt 0:01:10]} 30. c5 {[%emt 0:00:33]} Rc6 $2 {[%emt 0:01:28]} (30... Rd2 $19 {( -> ...Qd8)} 31. c6 R7d6) 31. Qb3+ $1 $14 {[%emt 0:01:35]} Kh8 {[%emt 0:00:01]} 32. e4 $1 {[%emt 0:00:47]} Qf8 {[%emt 0:01:01]} (32... Bxe4 $14 33. f3 Bg6) 33. Bxe5 $16 {[%emt 0:01:10]} Rxc5 {[%emt 0:00:04]} 34. Rg3 $1 {[%emt 0:01:09]} Bxe4 {[%emt 0:00:01]} 35. Qb4 $1 {[%emt 0:04:23] Black must now prevent Rc3.} (35. Qe6 Re7 36. Bd6 Rxc2 $15) 35... Bxc2 {[%emt 0:00:48]} 36. Re3 {[%emt 0:00:53][%cal Oe5d6] Threatens to win with Bd6!} Rd8 {[%emt 0:01:22] Dodges Bd6} (36... Qc8 $16 {was called for.} 37. Bd4 Rcc7) 37. Rc1 $1 $18 {[%emt 0:01:12][%cal Oe5g7]} Re8 $2 {[%emt 0:00:23]} (37... Rcc8 38. Qxf8+ Rxf8) 38. Qb2 $2 {[%emt 0:02:26]} (38. Bc3 Rxc3 39. Qxf8+ Rxf8 40. Rxc3) 38... Rec8 {[%emt 0:00:32]} 39. Re2 $2 {[%emt 0:01:20]} (39. h5 $18) 39... Qf3 $1 $11 {[%emt 0:00:34] ...Qh1+ is the strong threat.} 40. Bxg7+ {[%emt 0:01:10]} Kg8 {[%emt 0:00:02]} 41. Bd4 {[%emt 0:00:43][%cal Od4c5]} (41. Rcxc2 $2 Qh1+ 42. Kd2 Rxc2+ 43. Qxc2 Rxc2+ 44. Kxc2 Kxg7 $19) 41... Rc4 {[%emt 0:00:48] ...Qh1+ would be deadly.} 42. Re3 {[%emt 0:00:34]} (42. Rexc2 $11 Re8+ 43. Be3 Rxe3+ 44. fxe3 Qh1+ 45. Kf2 Qh2+ 46. Ke1 Qh1+ 47. Kf2 Qh2+ 48. Kf1 Qh1+ 49. Kf2) 42... Qh1+ $15 {[%emt 0:00:28]} 43. Ke2 {[%emt 0:00:33][%cal Be1e2,Be2d3,Bd3c4][%mdl 32] [#]} Bd3+ {[%emt 0:00:44]} 44. Kxd3 $11 {[%emt 0:01:01]} Rxc1 {[%emt 0:00:18]} 45. Qb3+ {[%emt 0:00:00]} R1c4 {[%emt 0:00:33]} 46. Qxc4+ {[%emt 0:00:27]} (46. Re8+ {is interesting.} Rxe8 47. Qxc4+ Kf8 48. Kc2) 46... Rxc4 {[%emt 0:00:01]} 47. Kxc4 {[%emt 0:00:09]} Qxh4 {[%emt 0:00:15][%mdl 4096] Endgame KQ-KRB} 48. Re7 {[%emt 0:00:41]} Qh1 {[%emt 0:00:53]} 49. Ra7 {[%emt 0:00:41]} Qc6+ {[%emt 0:00:40]} 50. Bc5 {[%emt 0:00:30]} Qe6+ {[%emt 0:00:32]} 51. Kb5 {[%emt 0:00:31]} Qb3+ {[%emt 0:00:48]} 52. Ka6 {[%emt 0:00:29]} (52. Kc6 $5 {[%cal Rc5e3]}) 52... Qa4+ {[%emt 0:00:18]} 53. Kb6 {[%emt 0:00:30]} Qb3+ {[%emt 0:00:07]} 54. Kc7 {[%emt 0:00:29]} Qf7+ {[%emt 0:00:14]} 55. Kc6 {[%emt 0:00:31]} Qe6+ {[%emt 0:00:10]} 56. Kb7 $2 {[%emt 0:00:30] [#]} (56. Kb5 $11 {and White is okay.}) 56... Qd7+ $2 {[%emt 0:00:46]} (56... Qd5+ $1 $19 57. Kb6 Qxg5 58. Ra8+ Kg7 59. Bd4+ Kf7) 57. Kb6 {[%emt 0:00:25]} Qe6+ {[%emt 0:00:13]} 58. Ka5 {[%emt 0:00:14]} Qe1+ {[%emt 0:00:49]} 59. Ka6 {[%emt 0:00:51]} Qe2+ {[%emt 0:00:27]} 60. Kb6 {[%emt 0:00:28]} Qe6+ {[%emt 0:00:22]} 61. Kc7 {[%emt 0:00:25]} (61. Ka5 $11 {keeps the balance.}) 61... Qf7+ {[%emt 0:00:25]} ({Better is} 61... Qe5+ $17 62. Bd6 Qg7+ 63. Kb6 Qxg5) 62. Kb6 {[%emt 0:00:38]} (62. Kc6 $5 {[%cal Ra7f7]} Qg6+ 63. Kb5 $15) 62... Qe6+ {[%emt 0:00:17]} 63. Kb5 {[%emt 0:00:28]} Qe2+ {[%emt 0:00:30]} 64. Ka4 {[%emt 0:00:32]} (64. Kb6 $5 {[%cal Rc5e3]}) 64... Qd1+ {[%emt 0:00:38]} 65. Kb4 {[%emt 0:00:27]} Qe1+ {[%emt 0:00:26]} 66. Kc4 {[%emt 0:00:21]} Qe6+ {[%emt 0:01:15]} 67. Kc3 {[%emt 0:00:24] The position is equal.} Qh3+ {[%emt 0:00:12]} 68. Be3 {[%emt 0:00:45]} Qc8+ {[%emt 0:00:09]} 69. Kd2 {[%emt 0:00:13]} Qd8+ {[%emt 0:00:15]} 70. Ke1 {[%emt 0:00:33]} Qd3 {[%emt 0:01:11]} 71. a4 {[%emt 0:00:46]} Qb1+ {[%emt 0:00:08]} 72. Ke2 {[%emt 0:00:22]} Qc2+ {[%emt 0:00:10]} 73. Kf3 {[%emt 0:00:15]} Qd1+ {[%emt 0:00:46]} 74. Kf4 {[%emt 0:00:51]} Qd6+ {[%emt 0:00:41]} 75. Kg4 {[%emt 0:00:07]} Qe6+ {[%emt 0:00:21]} 76. Kg3 {[%emt 0:00:31]} Qe5+ {[%emt 0:00:32]} 77. Bf4 {[%emt 0:00:15]} Qc3+ {[%emt 0:00:19]} 78. Kh2 {[%emt 0:00:56]} Qf3 {[%emt 0:01:15]} 79. Be3 {[%emt 0:00:43]} Qg4 {[%emt 0:00:52]} 80. Kh1 {[%emt 0:00:30]} Qh3+ {[%emt 0:00:15]} 81. Kg1 {[%emt 0:00:04]} Qg4+ {[%emt 0:00:08]} 82. Kh2 {[%emt 0:00:06]} Qh4+ {[%emt 0:00:08]} 83. Kg1 $1 {[%emt 0:00:26]} Qg4+ {[%emt 0:00:04]} 84. Kf1 {[%emt 0:00:04]} Qd1+ {[%emt 0:00:06]} 85. Kg2 {[%emt 0:00:05]} Qg4+ {[%emt 0:00:25]} 86. Kh2 {[%emt 0:00:06]} Qh4+ {[%emt 0:00:09]} 87. Kg2 {[%emt 0:00:07] Black defended with fortune. An exciting game.   Weighted Error Value: White=0.80/Black=0.78} 1/2-1/2

[Event "Ramat Gan Masters-A Winter 2023"]
[Site "Ramat Gan/ISR"]
[Date "2023.02.27"]
[Round "6.4"]
[White "Hasson Shreger, Shalev"]
[Black "Kochavi, Dana"]
[Result "1-0"]
[Annotator "TA"]
[ECO "B12"]
[WhiteElo "1823"]
[BlackElo "1956"]
[PlyCount "71"]
[EventDate "2023.01.17"]
[EventType "swiss"]
[SourceTitle "playchess.com"]
[Source "ChessBase"]
[SourceQuality "1"]
[TimeControl "5400+30"]

{[%evp 9,71,18,46,0,0,5,0,0,-10,-26,-14,-21,-8,-33,-26,-18,-25,-32,-20,-26,-7,-14,0,0,0,0,0,-19,0,-19,-12,-17,0,-18,0,0,0,0,138,116,275,264,266,266,256,79,78,82,320,310,637,606,730,720,1342,1275,1402,1359,1561,1544,1476,1476,1718,1373]} 1. e4 {[%emt 1:31:00]} c6 {[%emt 0:00:38]} 2. d4 {[%emt 0:00:00]} d5 {[%emt 0:00:05]} 3. e5 {[%emt 0:00:00]} Bf5 {[%emt 0:00:11]} 4. h4 {[%emt 0:00:00]} a6 {[%emt 0:00:10]} 5. a3 {[%emt 0:00:00] [#]} h6 $146 {[%emt 0:00:12]} ({Predecessor:} 5... h5 6. c4 e6 7. Nc3 Ne7 8. Nge2 dxc4 9. Ng3 b5 10. Nxh5 Nd7 11. Ng3 Nb6 12. Bg5 {1-0 Hong,A (2504)-Liang,A (2613) Junior Speed Qual blitz 2022 (1.55)}) 6. Bd3 {[%emt 0:00:00] B12: Caro-Kann: Advance Variation.} (6. g4 $5 {[%cal Rg4f5]} Bh7 7. e6 $14) 6... Bxd3 {[%emt 0:00:04]} 7. Qxd3 {[%emt 0:00:00][%cal Oe5e6]} e6 {[%emt 0:00:19]} 8. Ne2 {[%emt 0:00:00] The position is equal.} c5 {[%emt 0:00:55]} 9. Nd2 {[%emt 0:00:00]} cxd4 {[%emt 0:04:44]} 10. Nxd4 {[%emt 0:00:00]} Nc6 {[%emt 0:00:05]} 11. N2f3 {[%emt 0:00:00]} Nxd4 {[%emt 0:03:18]} 12. Qxd4 {[%emt 0:00:00]} Ne7 {[%emt 0:00:34]} 13. Bd2 {[%emt 0:00:00]} Nc6 {[%emt 0:02:07]} 14. Qg4 {[%emt 0:00:00]} g6 {[%emt 0:03:40]} 15. O-O {[%emt 0:00:00]} Bg7 {[%emt 0:02:00]} 16. h5 {[%emt 0:00:00]} g5 {[%emt 0:01:05]} 17. Rfe1 {[%emt 0:00:00]} Qc7 {[%emt 0:04:17]} 18. Rad1 {[%emt 0:00:00][%cal Ba1d1,Bd1d3,Bd3e3,Be3e4][%mdl 32]} Rc8 {[%emt 0:13:56][%cal Rc6e5]} 19. Bc3 {[%emt 0:00:00]} O-O {[%emt 0:01:55]} 20. Rd3 {[%emt 0:00:00]} Kh8 {[%emt 0:18:00]} 21. Qh3 {[%emt 0:00:00]} d4 {[%emt 0:01:55][%mdl 64] Deflection} 22. Nxd4 {[%emt 0:00:00]} Nxe5 {[%emt 0:00:22]} 23. Rde3 {[%emt 0:00:00][%cal Oe3e5] And now Rxe5! would win.} g4 {[%emt 0:11:34] [#]} (23... Nc6 $1 $11 24. Nxe6 fxe6 25. Rxe6 Nd4 26. Bxd4 Bxd4 27. Rxh6+ Kg8 28. Qe6+ Qf7) 24. Qh4 $1 $16 {[%emt 0:00:00][%cal Oe3e5] Strongly threatening Rxe5!} Nc4 {[%emt 0:00:11]} (24... Qd6 $16) 25. Re4 $18 {[%emt 0:00:00]} Qd8 {[%emt 0:06:23]} 26. Qg3 {[%emt 0:01:10]} ({Don't play} 26. Qxg4 Rg8 27. Nxe6 Bxc3 28. Nxd8 Rxg4 $18) (26. Rxg4 Qxh4 27. Rxh4 Rfd8 $11) 26... Qc7 {[%emt 0:04:15]} 27. Qxc7 {[%emt 0:00:31]} ({Resist} 27. Qxg4 $6 f5 28. Qg6 Rf6 29. Rxe6 Rxg6 30. hxg6 Nd6 $18) ({Weaker is} 27. Rxg4 Qxg3 28. Rxg3 Rg8 $14) (27. Nxe6 $18 fxe6 28. Bxg7+ Qxg7 29. Rxg4) 27... Rxc7 $16 {[%emt 0:00:06]} 28. Rxg4 {[%emt 0:00:03]} e5 $2 {[%emt 0:03:06]} (28... Rg8 $16 {was necessary.}) 29. Nf5 $18 {[%emt 0:00:04]} f6 $2 {[%emt 0:00:06]} (29... Bf6 30. Nxh6 Kh7) 30. Nxg7 {[%emt 0:12:42][%mdl 64] [#] aiming for Ne6. Deflection. White is clearly winning.} Rxg7 {[%emt 0:04:56]} 31. Rxc4 {[%emt 0:00:00]} Rd8 {[%emt 0:00:11]} 32. f4 {[%emt 0:00:00][%cal Bf2f4,Bf4e5][%mdl 32]} Rg4 {[%emt 0:01:17]} 33. Rce4 {[%emt 0:00:00]} Rdg8 {[%emt 0:00:06]} 34. R1e2 {[%emt 0:00:00]} Rd8 {[%emt 0:01:02]} 35. fxe5 {[%emt 0:00:00]} Rd1+ {[%emt 0:01:28]} 36. Kh2 {[%emt 0:00:00] Weighted Error Value: White=0.17 (very precise) /Black=0.46} 1-0